{"text_format":"1","workbook":"xlsx","n_sheets":2,"sheets":["Камеральная проверка","Экспертная оценка заседания ППк"],"not_rendered":{"charts":0,"images":0,"macros":1,"external_links":0,"defined_names":1,"comments":0,"pivot_tables":0},"unopened":[],"bounds":{"document_bytes":16777216,"sheet_cells":100000,"rows_first":2000,"rows_last":500,"rows_between":2000,"halvings":0,"cell_chars":16384,"cell_head_chars":4096},"cells_cut":0,"cells_raw":0,"read":"whole","date_system":"1900"}

{"sheet":"Камеральная проверка","index":0,"n_rows":28,"n_cols":20,"rows_kept":28,"cut":false,"hidden":false,"merged":[[27,1,27,2],[19,1,21,1],[19,0,21,0],[0,0,0,17],[2,0,2,1]]}
["Камеральная обработка документов ППк"]
[null,null,null,"Наименование ОО","Наименование ОО","Наименование ОО","Наименование ОО","Наименование ОО","Наименование ОО","Наименование ОО","Наименование ОО","Наименование ОО","Наименование ОО","Наименование ОО","Наименование ОО","Наименование ОО","Наименование ОО","Наименование ОО"]
["Показатели мониторинга",null,"Код ОО","Код ОО","Код ОО","Код ОО","Код ОО","Код ОО","Код ОО","Код ОО","Код ОО","Код ОО","Код ОО","Код ОО","Код ОО","Код ОО","Код ОО","Код ОО"]
["I. ","Документация психолого-педагогического консилиума","Критерии оценивания",{"$f":"AVERAGE(D5:D11)/2","v":{"$error":"#DIV/0!"}},{"$f":"AVERAGE(E5:E11)/2","v":{"$error":"#DIV/0!"}},{"$error":"#DIV/0!"},{"$error":"#DIV/0!"},{"$error":"#DIV/0!"},{"$error":"#DIV/0!"},{"$error":"#DIV/0!"},{"$error":"#DIV/0!"},{"$error":"#DIV/0!"},{"$error":"#DIV/0!"},{"$error":"#DIV/0!"},{"$error":"#DIV/0!"},{"$error":"#DIV/0!"},{"$error":"#DIV/0!"},{"$error":"#DIV/0!"}]
[1,"Наличие приказа о создании ППк с утверждённым составом специалистов ППк ","2 балла – имеется в наличии, состав утвержден;\n1 балл – имеется в наличии, нет утвержденного состава;\n0 баллов – документ отсутствует\n\n\n"]
[2,"Наличие Положения о Психолого-педагогическом консилиуме в ОО ","2 б. – имеется в наличии, без замечаний;                                                                    1 б. – имеется в наличии, с замечаниями;                                                                0 б. – документ отсутствует\n\n",null,null," "]
[3,"Наличие Графика проведения плановых заседаний ППк на учебный год","2 б. – имеется в наличии, без замечаний;                                                                    1 б. – имеется в наличии, с замечаниями;                                                                0 б. – документ отсутствует\n\n"]
[4,"Наличие Журнала учета заседаний ППк и обучающихся, прошедших ППк ","2 б. – имеется в наличии, ведется без замечаний;                                                                    1 б. – имеется в наличии, ведется с замечаниями;                                                                0 б. – отсутствует\n\n"]
[5,"Наличие Журнала регистрации коллегиальных заключений психолого-педагогического консилиума ","2 б. – имеется в наличии, ведется без замечаний;                                                                    1 б. – имеется в наличии, ведется с замечаниями;                                                                0 б. – отсутствует\n\n",null,null,null,null,null,null,null,null,null,null,null,null,null,null,null,null," "]
[6,"Наличие Протоколов заседаний ППк","2 б. – имеются в наличии, ведутся без замечаний;                                                                    1 б. – имеются в наличии, ведутся с замечаниями;                                                                0 б. – отсутствуют\n\n"]
[7,"Наличие Журнала направлений обучющихся на ПМПК ","2 б. – имеется в наличии, ведется без замечаний;                                                                    1 б. – имеется в наличии, ведется с замечаниями;                                                                0 б. – отсутствует\n\n"]
["II.","Карта развития обучающегося              (3-5 карт по выбору)","Критерии оценивания",{"$f":"AVERAGE(D13:D17)/2","v":{"$error":"#DIV/0!"}},{"$f":"AVERAGE(E13:E17)/2","v":{"$error":"#DIV/0!"}},{"$error":"#DIV/0!"},{"$error":"#DIV/0!"},{"$error":"#DIV/0!"},{"$error":"#DIV/0!"},{"$error":"#DIV/0!"},{"$error":"#DIV/0!"},{"$error":"#DIV/0!"},{"$error":"#DIV/0!"},{"$error":"#DIV/0!"},{"$error":"#DIV/0!"},{"$error":"#DIV/0!"},{"$error":"#DIV/0!"},{"$error":"#DIV/0!"}]
[8,"Наличие результатов компексного обследования обучающегося","2 б. – имеются в наличии, без замечаний;                                                                    1 б. – имеется в наличии,  с замечаниями;                                                                0 б. – отсутствуют\n\n"]
[9,"Наличие характеристики или педагогического представления на обучающегося","2 б. – имеется в наличии, без замечаний;                                                                    1 б. – имеется в наличии,  с замечаниями;                                                                0 б. – отсутствует\n\n"]
[10,"Наличие коллегиального заключения консилиума","2 б. – имеется в наличии, без замечаний;                                                                    1 б. – имеется в наличии,  с замечаниями;                                                                0 б. – отсутствует\n\n"]
[11,"Наличие представления психолого-педагогического консилиума на обучающегося для предоставления на ПМПК","2 б. – имеется в наличии, без замечаний/в случае отсутствия необходимости представления на ПМПК;                                                                    1 б. – имеется в наличии,  с замечаниями;                                                                0 б. – отсутствует\n\n"]
[12,"Наличие данных об обучении ребёнка в классе/группе","2 б. – имеются в наличии, без замечаний;                                                                    1 б. – имеются в наличии,  с замечаниями;                                                                0 б. – отсутствуют\n\n"]
["III.","Результативность","Критерии оценивания",{"$f":"AVERAGE(D19/2)","v":0},{"$f":"AVERAGE(E19/2)","v":0},0,0,0,0,0,0,0,0,0,0,0,0,0]
[13,"Наличие данных по коррекционно-развивающей работе, проводимой специалистами психолого-педагогического сопровождения ","2 б. – имеются в наличии, без замечаний;                                                                    1 б. – имеются в наличии,  с замечаниями;                                                                0 б. – отсутствуют\n\n"]
[null,"Итог","Полнота",{"$f":"D4","v":{"$error":"#DIV/0!"}},{"$f":"E4","v":{"$error":"#DIV/0!"}},{"$error":"#DIV/0!"},{"$error":"#DIV/0!"},{"$error":"#DIV/0!"},{"$error":"#DIV/0!"},{"$error":"#DIV/0!"},{"$error":"#DIV/0!"},{"$error":"#DIV/0!"},{"$error":"#DIV/0!"},{"$error":"#DIV/0!"},{"$error":"#DIV/0!"},{"$error":"#DIV/0!"},{"$error":"#DIV/0!"},{"$error":"#DIV/0!"}]
[null,null,"Качество",{"$f":"D12","v":{"$error":"#DIV/0!"}},{"$f":"E12","v":{"$error":"#DIV/0!"}},{"$error":"#DIV/0!"},{"$error":"#DIV/0!"},{"$error":"#DIV/0!"},{"$error":"#DIV/0!"},{"$error":"#DIV/0!"},{"$error":"#DIV/0!"},{"$error":"#DIV/0!"},{"$error":"#DIV/0!"},{"$error":"#DIV/0!"},{"$error":"#DIV/0!"},{"$error":"#DIV/0!"},{"$error":"#DIV/0!"},{"$error":"#DIV/0!"}]
[null,null,"Результат",{"$f":"D18","v":0},0,0,0,0,0,0,0,0,0,0,0,0,0,0]
[null,null,"Всего баллов",{"$f":"SUM(D5:D11,D13:D17,D19)","v":0},{"$f":"SUM(E5:E11,E13:E17,E19)","v":0},0,0,0,0,0,0,0,0,0,0,0,0,0]
[null,null,"% от общего количества баллов",{"$f":"D23/26","v":0},{"$f":"E23/26","v":0},0,0,0,0,0,0,0,0,0,0,0,0,0]
[null,null,"уровень (В, С, Н,)"]
[]
[]
[null,"Оценка соответствия ведения документации ППк:\nвысокий уровень (от 70% и выше): 26 – 18 баллов;\nсредний уровень (36% - 69%): 17 – 9 баллов;\nнизкий уровень (35% и ниже): 8 - 0 баллов.\n"]

{"sheet":"Экспертная оценка заседания ППк","index":1,"n_rows":19,"n_cols":22,"rows_kept":19,"cut":false,"hidden":false,"merged":[[18,1,18,2]]}
["Экспертная оценка заседания  ППк"]
[null,null,null,"Наименование ОО","Наименование ОО","Наименование ОО","Наименование ОО","Наименование ОО","Наименование ОО","Наименование ОО","Наименование ОО","Наименование ОО","Наименование ОО","Наименование ОО","Наименование ОО","Наименование ОО","Наименование ОО","Наименование ОО","Наименование ОО","Наименование ОО","Наименование ОО","Наименование ОО"]
[null,"    Показатели мониторинга","Код ОО","Код ОО","Код ОО","Код ОО","Код ОО","Код ОО","Код ОО","Код ОО","Код ОО","Код ОО","Код ОО","Код ОО","Код ОО","Код ОО","Код ОО","Код ОО","Код ОО","Код ОО","Код ОО","Код ОО"]
[1,"Процедура проведения заседания консилиума ","2 б. – процедура соблюдена в полном объеме;\n1 б. – процедура соблюдена частично;\n0 б. – процедура не соблюдена\n"]
[2,"Сведения об успеваемости обучающегося (рассматриваются результаты усвоения ребёнком содержания образовательной программы, при этом имеются подтверждающие материалы,  не противоречащие выводам)","2 б. – сведения представлены в полном объеме;\n1 б. – сведения представлены частично;\n0 б. – сведения не представлены\n"]
[3,"Оценка социально-психологической адаптации обучающегося (обсуждается степень социализации и адаптации обучающегося)","2 б. – оценка дана в полном объеме;\n1 б. – оценка дана частично;\n0 б. – оценка не дана\n"]
[4,"Индивидуально-психологические особенности развития обучающегося (рассматриваются результаты обследования обучающегося узкими специалистами с определением уровня их актуального развития)","2 б. – результаты обследования не содержат противоречий, имеются анализ и выводы каждого члена ППк;\n1 б. – имеются противоречия при анализе и выводах, информация представлена недостаточно;\n0 б. – анализ и вывод членов ППк отсутствует\n"]
[5,"Коллегиальное заключение ППк (итогом работы консилиума является принятие коллегиального заключения консилиума (создание СОУ, разработка ИОМ c распределением наргузки на ребенка в соответствии с СанПин) в соответсии с выявленными проблемами","2 б. – коллегиальное заключение представлено в полном объеме;\n1 б. – коллегиальное заключение представлено частично;\n0 б. – коллегиальное заключение не представлено\n"]
[6,"Протокол заседания ППк","2 б. – ход заседания фиксируется полностью;\n1 б. – ход заседания фиксируется частично;\n0 б. – протокол не ведется\n",null,null,null,null,null,null,null,null,null,null,null,null,"    "]
[7,"Рекомендации членов ППк педагогам","2 б. – представлены коллегиальные рекомендации;\n1 б. – представлены рекомендации не всех членов консилиума;\n0 б. – рекомендации не представлены\n"]
[8,"Рекомендации членов ППк родителям (законным представителям)","2 б. – представлены коллегиальные рекомендации;\n1 б. – представлены рекомендации не всех членов консилиума;\n0 б. – рекомендации не представлены\n"]
[9,"Ознакомление родителей (законных представителей) с коллегиальным заключением","2 б. – доводится до сведения родителей (законных представителей) в день проведения заседания ППк;\n0 б. – не доводится до сведения родителей (законных представителей) в день проведения заседания ППк\n\n"]
[null,"Итог","Среднее / на баллы",{"$f":"AVERAGE(D4:D12)/2","v":{"$error":"#DIV/0!"}},{"$f":"AVERAGE(E4:E12)/2","v":{"$error":"#DIV/0!"}},{"$error":"#DIV/0!"},{"$error":"#DIV/0!"},{"$error":"#DIV/0!"},{"$error":"#DIV/0!"},{"$error":"#DIV/0!"},{"$error":"#DIV/0!"},{"$error":"#DIV/0!"},{"$error":"#DIV/0!"},{"$error":"#DIV/0!"},{"$error":"#DIV/0!"},{"$error":"#DIV/0!"},{"$error":"#DIV/0!"},{"$error":"#DIV/0!"},{"$error":"#DIV/0!"},{"$error":"#DIV/0!"},{"$error":"#DIV/0!"},{"$error":"#DIV/0!"}]
[null,null,"Всего баллов",{"$f":"SUM(D4:D12)","v":0},{"$f":"SUM(E4:E12)","v":0},0,0,0,0,0,0,0,0,0,0,0,0,0,0,0,0,0]
[null,null,"уровень (В, С, Н)"]
[]
[]
[]
[null,"Оценка заседания ППк:\nвысокий уровень (от 70% и выше): 18 – 13 баллов;\nсредний уровень (36% - 69%): 12 – 6 баллов;\nнизкий уровень (35% и ниже): 5 - 0 баллов.\n"]